bitfinex-derivatives/quotes_SOLF0:USTF0_20240815
["timestamp","ask_amount","ask_price","bid_price","bid_amount"]
[1723737928213,8.31453719,146.79,146.76,0.04789053]
[1723737928412,0.05159192,146.77,146.76,0.04789053]
[1723737928616,3.407,146.75,146.72,36.81]
[1723737928915,0.05159192,146.77,146.72,36.81]
[1723737929109,0.05159192,146.77,146.72,36.85400686]
[1723737929304,3.4072,146.74,146.72,36.85400686]
[1723737930314,3.4074,146.73,146.72,36.85400686]
[1723737930503,0.05159192,146.77,146.72,36.85400686]
[1723737930708,3.4072,146.75,146.74,36.81]
[1723737931006,4.92,146.83,146.74,36.81]
[1723737931306,3.406,146.79,146.78,36.81]
[1723737931511,4.92,146.84,146.78,36.81]
[1723737932312,3.406,146.79,146.78,36.81]
[1723737932514,0.04383324,146.82,146.75,36.81]
[1723737932714,3.4064,146.78,146.75,36.81]
[1723737933018,4.92,146.84,146.8,0.05190269]
[1723737933219,4.92,146.84,146.75,36.81]
[1723737933417,0.04475113,146.78,146.75,36.81]
[1723737933612,3.4061,146.79,146.75,36.81]
[1723737933813,4.92,146.84,146.75,36.85667083]
[1723737934118,4.92,146.84,146.75,36.81]
[1723737934320,0.04630575,146.81,146.78,0.04382045]
[1723737934516,3.406,146.79,146.78,0.04382045]
[1723737935508,8.326,146.79,146.78,0.04382045]
[1723737937823,3.406,146.79,146.78,0.04382045]
[1723737947127,3.4058,146.8,146.78,0.04382045]
[1723737947322,3.406,146.79,146.78,0.04382045]
[1723737952027,6.86552023,146.79,146.78,0.04382045]
[1723737954623,5.04,146.79,146.68,29.45]
[1723737954819,29.45,146.77,146.68,29.45]
[1723737955024,3.4082,146.7,146.69,5.04]
[1723737955223,36.2631,146.77,146.69,5.04]
[1723737955821,0.04732148,146.74,146.72,0.0477873]
[1723737956026,3.4074,146.73,146.72,0.0477873]
[1723737960230,0.04732148,146.74,146.72,29.4977873]
[1723737960430,0.04732148,146.74,146.73,5.04]
[1723737961528,0.04732148,146.74,146.72,29.4977873]
[1723737961737,0.04732148,146.74,146.73,34.49]
[1723737962631,3.37151799,146.8,146.73,34.49]
[1723737962834,1.3521,146.82,146.77,29.45]
[1723737963037,1.3521,146.82,146.72,29.4977873]
[1723737963038,2.6037,146.84,146.8,29.45]
[1723737963237,4.64500548,146.88,146.8,29.45]
[1723737963431,5.95880548,146.88,146.8,29.45]
[1723737963832,35.40880548,146.88,146.81,5.04]
[1723737964038,3.4056,146.81,146.8,34.49]
[1723737964341,0.05138873,146.85,146.83,0.04729911]
[1723737964535,3.4049,146.84,146.83,0.04729911]
[1723737965040,3.4049,146.84,146.8,34.49]
[1723737965237,5.95880548,146.88,146.8,34.49]
[1723737965442,0.04958437,146.85,146.82,0.04734801]
[1723737966843,3.4051,146.83,146.82,0.04734801]
[1723737973242,3.4051,146.83,146.76,34.53]
[1723737973243,3.4064,146.78,146.76,34.53]
[1723737973648,3.4064,146.78,146.76,29.45]
[1723737973845,3.4065,146.77,146.74,29.45]
[1723737974050,3.42929928,146.8,146.74,29.45]
[1723737974242,1.3383,146.84,146.74,34.53]
[1723737974442,3.4066,146.77,146.74,29.45]
[1723737974647,0.04917531,146.78,146.63,34.0593]
[1723737974944,8.1485,146.84,146.73,29.45]
[1723737974945,1.3402,146.82,146.73,29.45]
[1723737975143,3.4066,146.77,146.75,29.45]
[1723737975453,1.3402,146.82,146.75,29.45]
[1723737975751,0.04927009,146.8,146.77,29.45]
[1723737975941,0.04927009,146.8,146.77,29.49793372]
[1723737976147,3.406,146.79,146.77,29.49793372]
[1723737977151,3.45507009,146.8,146.77,29.49793372]
[1723737977352,0.04927009,146.8,146.79,29.45]
[1723737978956,3.4061,146.79,146.77,29.47600368]
[1723737979156,0.04927009,146.8,146.77,29.47600368]
[1723737979353,3.4063,146.78,146.77,29.47600368]
[1723737982755,3.4063,146.78,146.77,0.02600368]
[1723737983563,3.4061,146.79,146.77,0.02600368]
[1723737983860,3.4061,146.79,146.77,29.47600368]
[1723737984258,3.4063,146.78,146.77,29.47600368]
[1723737984458,0.04927009,146.8,146.77,29.47600368]
[1723737984856,3.4061,146.79,146.77,29.47600368]
[1723737985659,0.04927009,146.8,146.77,29.47600368]
[1723737985857,0.04927009,146.8,146.78,29.45]
[1723737988166,3.45507009,146.8,146.78,29.45]
[1723737989965,5.08,146.85,146.78,29.45]
[1723737990161,1.2235,146.9,146.83,29.45]
[1723737990359,66.01266255,146.92,146.88,29.45]
[1723737990565,1.2584,146.94,146.89,5.08]
[1723737990760,1.2584,146.94,146.9,29.45]
[1723737991267,3.4032,146.91,146.9,29.45]
[1723737991765,3.4032,146.91,146.9,34.53]
[1723737993274,0.04533241,146.93,146.9,29.45]
[1723737993466,0.04533241,146.93,146.9,34.53]
[1723737993774,0.04533241,146.93,146.91,5.08]
[1723737993974,0.04533241,146.93,146.92,5.08]
[1723737996371,3.44813241,146.93,146.92,5.08]
[1723737996572,0.04533241,146.93,146.92,5.08]
[1723737997271,0.04533241,146.93,146.91,29.45]
[1723737997474,0.04533241,146.93,146.92,4.98]
[1723737998080,0.04533241,146.93,146.91,29.45]
[1723737998278,3.44813241,146.93,146.91,29.45]
[1723737998475,3.44813241,146.93,146.92,4.98]
[1723737999080,0.04533241,146.93,146.92,4.98]
[1723737999875,3.44813241,146.93,146.92,4.98]
[1723738000076,0.04533241,146.93,146.92,4.98]
[1723738001574,3.44813241,146.93,146.92,4.98]
[1723738001880,0.04533241,146.93,146.92,4.98]
[1723738007088,3.44813241,146.93,146.92,4.98]
[1723738007285,3.44813241,146.93,146.91,29.45]
[1723738007590,3.44813241,146.93,146.92,4.98]
[1723738007889,0.04533241,146.93,146.92,4.98]
[1723738008590,3.44813241,146.93,146.92,4.98]
[1723738009681,0.04533241,146.93,146.9,4.98]
[1723738010188,3.4031,146.92,146.9,4.98]
[1723738011187,3.4031,146.92,146.89,29.49969009]
[1723738011392,3.4031,146.92,146.9,4.98]
[1723738011792,3.4033,146.91,146.89,34.47969009]
[1723738012197,0.04533241,146.93,146.89,29.49969009]
[1723738012394,3.4035,146.9,146.89,29.49969009]
[1723738013896,3.4033,146.91,146.89,29.49969009]
[1723738014091,0.04533241,146.93,146.89,29.49969009]
[1723738014493,3.4031,146.92,146.89,29.49969009]
[1723738014694,0.04533241,146.93,146.91,29.45]
[1723738015187,3.44813241,146.93,146.91,29.45]
[1723738016296,0.04533241,146.93,146.91,29.45]
[1723738016598,0.04533241,146.93,146.92,29.45]
[1723738016801,3.44813241,146.93,146.92,29.45]
[1723738017993,7.5514,146.98,146.92,29.45]
[1723738017994,2.5714,146.98,146.92,29.45]
[1723738018193,2.5714,146.98,146.94,29.45]
[1723738019198,3.4021,146.96,146.95,0.05121763]
[1723738020903,0.05004997,146.97,146.95,0.05121763]
[1723738021304,3.45204997,146.97,146.95,0.05121763]
[1723738022197,3.4021,146.96,146.95,0.05121763]
[1723738022801,3.45204997,146.97,146.95,0.05121763]
[1723738023003,0.05004997,146.97,146.95,0.05121763]
[1723738023509,3.4021,146.96,146.95,0.05121763]
[1723738024204,0.05004997,146.97,146.95,0.05121763]
[1723738024414,0.05004997,146.97,146.96,29.45]
[1723738025101,0.05004997,146.97,146.95,0.05121763]
[1723738025500,3.45204997,146.97,146.95,0.05121763]
[1723738026114,0.05004997,146.97,146.95,0.05121763]
[1723738026315,0.05004997,146.97,146.96,29.45]
[1723738027210,0.05004997,146.97,146.96,32.8521]
[1723738027713,0.05004997,146.97,146.96,29.45]
[1723738028217,0.05004997,146.97,146.95,29.50121763]
[1723738028513,3.4021,146.96,146.95,0.05121763]
[1723738029304,3.45204997,146.97,146.95,29.50121763]
[1723738029917,3.45204997,146.97,146.95,32.90341763]
[1723738030610,3.45204997,146.97,146.95,29.50121763]
[1723738031417,3.4021,146.96,146.95,0.05121763]
[1723738031614,0.05004997,146.97,146.91,29.45]
[1723738031810,1.3398,146.96,146.91,29.45]
[1723738032820,3.4028,146.93,146.91,32.8532]
[1723738033005,1.3398,146.96,146.92,29.45]
[1723738033209,0.04718752,146.95,146.92,29.49442267]
[1723738033414,0.04718752,146.95,146.92,32.95276734]
[1723738033616,0.04718752,146.95,146.94,29.45]
[1723738033805,0.04718752,146.95,146.94,32.8525]
[1723738035915,3.4019,146.97,146.95,3.4023]
[1723738036112,3.4022,146.96,146.94,29.45]
[1723738036913,3.4022,146.96,146.94,32.8524]
[1723738037212,0.05114443,146.96,146.94,0.04606325]
[1723738037517,3.4023,146.95,146.94,0.04606325]
[1723738040317,3.45344443,146.96,146.94,29.49606325]
[1723738040816,3.4019,146.97,146.95,3.4022]
[1723738041014,1.3431,147.0,146.94,29.49606325]
[1723738041521,3.4021,146.96,146.94,32.89846325]
[1723738041814,3.45259311,146.96,146.94,32.89846325]
[1723738042025,3.4023,146.95,146.94,29.49606325]
[1723738043214,3.45269311,146.96,146.94,32.89846325]
[1723738044911,3.45269311,146.96,146.88,6.8078]
[1723738044912,0.05049311,146.96,146.88,29.45]
[1723738045117,3.53241535,146.96,146.88,29.45]
[1723738045314,3.4037,146.89,146.88,29.45]
[1723738046117,3.4039,146.88,146.87,0.04558702]
[1723738046314,3.4039,146.88,146.82,4.84]
[1723738046511,3.4039,146.88,146.56,339.09194295]
[1723738046512,29.45,146.9,146.74,4.84]
[1723738046821,0.05152915,146.89,146.79,29.45]
[1723738047018,29.45,146.88,146.81,0.04772804]
[1723738047222,3.4053,146.82,146.81,0.04772804]
[1723738047715,3.4053,146.82,146.72,29.45]
[1723738047716,29.45,146.83,146.64,4.84]
[1723738047918,29.45,146.78,146.68,29.45]
[1723738048122,29.45,146.78,146.69,3.4082]
[1723738048322,29.45,146.78,146.7,34.29]
[1723738048815,3.4073,146.74,146.73,0.04827452]
[1723738049922,0.05035135,146.75,146.69,4.84]
[1723738050122,36.83,146.77,146.69,4.84]
[1723738050422,3.408,146.71,146.69,4.84]
[1723738050816,40.2192823,146.8,146.7,36.83]
[1723738051011,0.04334836,146.71,146.7,36.83]
[1723738051220,45.13407558,146.82,146.7,36.83]
[1723738051419,3.4071,146.75,146.72,36.83]
[1723738051819,0.04417686,146.77,146.72,40.28565962]
[1723738052023,3.4069,146.76,146.72,40.28565962]
[1723738052618,3.407,146.75,146.72,40.28565962]
[1723738052820,0.04417686,146.77,146.72,40.28565962]
[1723738053021,0.04417686,146.77,146.72,36.87805962]
[1723738053423,0.04417686,146.77,146.72,0.04805962]
[1723738053617,3.4074,146.73,146.72,0.04805962]
[1723738060528,0.04535348,146.74,146.72,36.87805962]
[1723738060722,6.829,146.9,146.72,36.87805962]
[1723738060723,1.2258,146.81,146.72,36.87805962]
[1723738061028,1.2258,146.81,146.76,36.83]
[1723738061222,1.2258,146.81,146.75,4.98]
[1723738061624,3.4067,146.77,146.75,4.98]
[1723738061922,1.2258,146.81,146.74,36.83]
[1723738062117,3.4068,146.76,146.74,41.81]
[1723738062320,3.4068,146.76,146.75,0.04654824]
[1723738063525,0.04592678,146.77,146.75,0.04654824]
[1723738063526,0.04592678,146.77,146.75,3.44859253]
[1723738063730,2.6438,146.85,146.76,40.2367]
[1723738064231,3.4064,146.78,146.76,36.83]
[1723738065027,3.4064,146.78,146.76,36.87871973]
[1723738065229,3.4065,146.77,146.76,0.04871973]
[1723738069524,3.4065,146.77,146.69,38.1236]
[1723738069525,3.4074,146.73,146.72,4.98]
[1723738070231,3.4077,146.72,146.71,4.98]
[1723738070426,38.0897,146.8,146.71,4.98]
[1723738070731,3.4556249,146.73,146.71,4.98]
[1723738071235,0.04576661,146.73,146.71,5.02499804]
[1723738071426,3.45326661,146.73,146.71,5.02499804]
[1723738071737,0.04576661,146.73,146.72,36.83]
[1723738072139,6.8114,146.81,146.72,36.83]
[1723738072532,3.4068,146.76,146.72,36.83]
[1723738072729,1.2597,146.84,146.72,36.83]
[1723738073137,3.4065,146.77,146.72,36.83]
[1723738073527,3.4065,146.77,146.74,3.4071]
[1723738073528,0.0510036,146.76,146.74,3.4071]
[1723738075441,3.4578036,146.76,146.73,0.04865918]
[1723738075735,3.4578036,146.76,146.74,4.98]
[1723738076534,0.0510036,146.76,146.74,45.1458392]
[1723738076840,0.0510036,146.76,146.74,45.2171]
[1723738077838,36.83,146.93,146.74,41.81]
[1723738078043,2.6307,146.91,146.82,36.83]
[1723738078239,2.6307,146.91,146.83,4.98]
[1723738078939,3.4041,146.88,146.83,8.385]
[1723738079144,3.45491395,146.88,146.86,0.04459225]
[1723738080445,3.4042,146.87,146.86,0.04459225]
[1723738081042,0.05081395,146.88,146.79,3.406]
[1723738081043,3.4047,146.85,146.81,4.98]
[1723738081242,36.83,146.88,146.81,4.98]
[1723738081544,3.4045,146.86,146.81,4.98]
[1723738081738,39.4607,146.91,146.81,4.98]
[1723738081944,36.83,146.89,146.81,4.98]
[1723738082349,0.04733106,146.87,146.85,0.05010872]
[1723738082543,3.4044,146.86,146.85,0.05010872]
[1723738083748,0.04733106,146.87,146.85,0.05010872]
[1723738084142,3.4029,146.93,146.87,3.404]
[1723738084452,3.43947619,146.95,146.86,41.81]
[1723738084750,38.1603,146.99,146.86,41.81]
[1723738085047,38.1603,146.99,146.88,3.4039]
[1723738085048,41.55073811,146.99,146.88,3.4039]
[1723738085449,0.04400742,146.94,146.91,0.05225255]
[1723738085944,3.44660742,146.94,146.91,0.05225255]
[1723738086146,0.04400742,146.94,146.91,0.05225255]
[1723738086350,3.403,146.92,146.91,0.05225255]
[1723738088351,3.4036,146.9,146.84,36.83]
[1723738088652,36.83,146.94,146.85,4.98]
[1723738088849,3.4037,146.89,146.85,4.98]
[1723738089050,3.4037,146.89,146.84,40.2349]
[1723738089251,3.4037,146.89,146.84,41.81]
[1723738089452,36.83,146.94,146.84,41.81]
[1723738089453,3.4036,146.9,146.85,3.4046]
[1723738089656,0.04579773,146.88,146.85,3.45189121]
[1723738089859,3.4036,146.9,146.85,3.4046]
[1723738090150,3.4036,146.9,146.83,1.3178]
[1723738090151,3.45907119,146.9,146.83,3.4051]
[1723738090460,0.04740955,146.88,146.85,0.04605977]
[1723738090648,3.4042,146.87,146.85,0.04605977]
[1723738090849,0.04740955,146.88,146.85,0.04605977]
[1723738091157,3.4043,146.87,146.85,0.04605977]
[1723738091846,0.04740955,146.88,146.85,0.04605977]
[1723738092252,0.04740955,146.88,146.85,3.45055977]
[1723738093453,0.04740955,146.88,146.86,3.4044]
[1723738093653,0.04740955,146.88,146.85,0.04605977]
[1723738094150,0.04740955,146.88,146.85,3.45055977]
[1723738095553,0.04740955,146.88,146.85,0.04605977]
[1723738096156,3.4043,146.87,146.85,0.04605977]
[1723738097053,3.45140955,146.88,146.85,3.45055977]
[1723738097248,0.04740955,146.88,146.85,0.04605977]
[1723738097457,3.45150955,146.88,146.85,3.45065977]
[1723738097654,0.04740955,146.88,146.85,3.45065977]
[1723738097859,0.04740955,146.88,146.85,0.04605977]
[1723738098553,3.4044,146.86,146.85,0.04605977]
[1723738099659,3.4042,146.87,146.85,0.04605977]
[1723738101152,0.04740955,146.88,146.85,0.04605977]
[1723738101355,0.04740955,146.88,146.86,36.83]
[1723738101659,0.04740955,146.88,146.85,0.04605977]
[1723738102259,3.4042,146.87,146.85,0.04605977]
[1723738102967,3.4044,146.86,146.85,0.04605977]
[1723738103562,3.4043,146.87,146.85,3.45065977]
[1723738103966,3.45150955,146.88,146.85,0.04605977]
[1723738104265,0.04740955,146.88,146.86,3.4042]
[1723738104969,0.04740955,146.88,146.85,0.04605977]
[1723738105162,0.04740955,146.88,146.86,4.98]
[1723738105358,0.04740955,146.88,146.86,41.81]
[1723738106764,0.04740955,146.88,146.86,4.98]
[1723738107258,3.4042,146.87,146.86,4.98]
[1723738108065,3.4044,146.86,146.85,0.04605977]
[1723738109268,38.1508,146.87,146.79,4.98]
[1723738109765,3.4058,146.8,146.79,4.98]
[1723738111665,3.406,146.79,146.78,0.05091213]
[1723738111865,0.04536532,146.81,146.78,0.05091213]
[1723738112264,3.4058,146.8,146.78,0.05091213]
[1723738112768,3.4058,146.8,146.78,3.45711213]
[1723738112974,3.45106532,146.81,146.78,0.05091213]
[1723738113366,3.45106532,146.81,146.78,3.45701213]
[1723738114157,3.45106532,146.81,146.79,3.406]
[1723738115369,3.4058,146.8,146.78,3.45711213]
[1723738116763,3.4058,146.8,146.78,0.05091213]
[1723738117973,0.04536532,146.81,146.78,0.05091213]
[1723738117974,3.406,146.79,146.78,0.05091213]
[1723738120976,0.04536532,146.81,146.78,0.05091213]
[1723738121477,3.406,146.79,146.78,0.05091213]
[1723738128577,0.04536532,146.81,146.78,0.05091213]
[1723738129574,0.04536532,146.81,146.79,3.406]
[1723738130082,0.04536532,146.81,146.8,3.4058]
[1723738131487,0.04536532,146.81,146.79,3.4059]
[1723738131786,0.04536532,146.81,146.78,0.05091213]
[1723738132387,3.406,146.79,146.78,0.05091213]
[1723738138495,3.4067,146.76,146.74,4.98]
[1723738139582,3.407,146.75,146.7,36.8]
[1723738139789,3.407,146.75,146.74,0.04645332]
[1723738140186,0.04982699,146.76,146.69,8.23464998]
[1723738140395,0.04982699,146.76,146.73,0.04380238]
[1723738141189,3.4074,146.74,146.73,0.04380238]
[1723738144389,3.4074,146.74,146.67,42.8999]
[1723738144390,3.33402239,146.74,146.67,41.62]
[1723738144690,4.82,146.76,146.68,3.4084]
[1723738144894,3.4078,146.72,146.67,41.62]
[1723738145095,1.2382,146.77,146.67,45.04842331]
[1723738145289,3.4076,146.73,146.67,45.04842331]
[1723738145488,0.04386314,146.73,146.71,0.05145054]
[1723738146186,3.4076,146.72,146.71,0.05145054]
[1723738148188,3.4086,146.68,146.64,2.5302]
[1723738148392,40.27511257,146.74,146.64,1.2438]
[1723738148596,3.4089,146.67,146.64,1.2438]
[1723738148991,40.27511257,146.74,146.65,36.8]
[1723738149199,3.4084,146.69,146.65,36.8]
[1723738149398,0.05031955,146.71,146.68,0.05160761]
[1723738150098,3.4081,146.7,146.68,0.05160761]
[1723738150995,3.4083,146.69,146.68,0.05160761]
[1723738157095,0.05031955,146.71,146.68,0.05160761]
[1723738157500,0.05031955,146.71,146.7,3.4079]
[1723738158506,0.05031955,146.71,146.69,3.408]
[1723738159392,0.05031955,146.71,146.68,3.45990761]
[1723738159599,0.05031955,146.71,146.68,0.05160761]
[1723738160299,3.4081,146.69,146.68,0.05160761]
[1723738161706,3.408,146.7,146.68,0.05160761]
[1723738162207,0.05031955,146.71,146.68,0.05160761]
[1723738163002,3.4081,146.69,146.68,0.05160761]
[1723738164898,3.45811955,146.71,146.68,0.05160761]
[1723738165202,0.05031955,146.71,146.68,0.05160761]
[1723738166706,3.4081,146.69,146.68,0.05160761]
[1723738178301,32.8481,146.69,146.68,0.05160761]
[1723738178609,3.4091,146.65,146.62,3.4097]
[1723738179714,3.4093,146.64,146.62,3.4097]
[1723738179911,1.266,146.71,146.62,3.4097]
[1723738179912,0.05037761,146.65,146.62,0.04374439]
[1723738180303,0.05037761,146.65,146.62,3.4096]
[1723738180614,0.0477694,146.65,146.62,3.45816326]
[1723738180814,3.4093,146.64,146.62,3.45816326]
[1723738181914,0.0477694,146.65,146.62,0.04856326]
[1723738182809,3.4095,146.63,146.62,0.04856326]
[1723738183614,0.0477694,146.65,146.62,0.04856326]
[1723738183910,3.40983494,146.77,146.64,29.44]
[1723738184112,3.4072,146.73,146.7,32.8478]
[1723738184916,3.45378294,146.73,146.7,32.89199068]
[1723738185217,3.4075,146.72,146.7,0.04419068]
[1723738185712,3.4077,146.71,146.7,0.04419068]
[1723738186408,3.4074,146.72,146.7,0.04419068]
[1723738189214,3.4077,146.71,146.7,0.04419068]
[1723738189724,3.4076,146.72,146.7,0.04419068]
[1723738190613,3.4076,146.72,146.7,3.45209068]
[1723738191222,3.4076,146.72,146.7,0.04419068]
[1723738192524,3.4076,146.72,146.7,3.45209068]
[1723738194926,3.45398294,146.73,146.71,3.4076]
[1723738195127,0.04658294,146.73,146.7,0.04419068]
[1723738195428,0.04658294,146.73,146.71,29.44]
[1723738195625,0.04658294,146.73,146.72,3.4074]
[1723738195923,3.4066,146.76,146.71,29.44]
[1723738196222,3.4066,146.76,146.73,32.8471]
[1723738196424,3.4066,146.76,146.73,37.6271]
[1723738197228,3.4068,146.75,146.73,37.67751164]
[1723738198934,3.4068,146.75,146.73,3.45751164]
[1723738199323,3.407,146.74,146.73,0.05041164]
[1723738206051,3.4078,146.71,146.68,15.1982]
[1723738206341,11.79,146.72,146.67,4.78]
[1723738206541,11.79,146.72,146.65,11.79]
[1723738206854,15.17503197,146.72,146.65,11.79]
[1723738207047,3.4087,146.67,146.65,11.79]
[1723738207247,0.04528248,146.7,146.63,4.78]
[1723738207448,11.79,146.71,146.65,0.04620609]
[1723738207646,3.4089,146.66,146.65,0.04620609]
[1723738208641,3.4087,146.67,146.65,0.04620609]
[1723738209043,0.04799719,146.68,146.65,3.45510609]
[1723738209245,3.45649719,146.68,146.65,3.45510609]
[1723738209642,0.04799719,146.68,146.65,0.04620609]
[1723738209842,3.4087,146.67,146.65,0.04620609]
[1723738210046,0.04799719,146.68,146.65,3.45510609]
[1723738210243,0.04799719,146.68,146.65,4.82620609]
[1723738210449,3.45649719,146.68,146.65,0.04620609]
[1723738210648,3.45649719,146.68,146.65,3.45510609]
[1723738210956,3.4086,146.67,146.65,0.04620609]
[1723738211456,3.4088,146.66,146.65,0.04620609]
[1723738216954,3.4088,146.67,146.65,0.04620609]
[1723738217254,0.04799719,146.68,146.65,0.04620609]
[1723738217756,3.4088,146.66,146.65,0.04620609]
[1723738222251,3.4099,146.62,146.6,29.45]
[1723738223162,3.41,146.61,146.6,29.45]
[1723738223463,0.04308238,146.62,146.6,29.49400607]
[1723738223659,1.3383,146.68,146.6,29.49400607]
[1723738224366,3.4099,146.62,146.6,29.49400607]
[1723738224858,3.4097,146.63,146.6,32.90420607]
[1723738225063,0.04462942,146.65,146.6,3.45420607]
[1723738225263,0.04462942,146.65,146.6,0.04400607]
[1723738225457,0.04462942,146.65,146.61,29.45]
[1723738225657,0.04462942,146.65,146.63,29.45]
[1723738225855,0.04462942,146.65,146.64,3.4093]
[1723738226265,0.04462942,146.65,146.63,29.50013772]
[1723738226466,0.04462942,146.65,146.63,32.90943772]
[1723738226861,0.04462942,146.65,146.63,29.50013772]
[1723738227061,0.04462942,146.65,146.64,3.4093]
[1723738227760,3.4085,146.68,146.65,3.4089]
[1723738227960,3.4085,146.68,146.66,29.45]
[1723738228664,3.41507401,146.71,146.66,29.45]
[1723738228665,3.408,146.7,146.66,29.45]
[1723738228865,0.05120304,146.69,146.66,29.45]
[1723738229058,0.05120304,146.69,146.67,0.04443378]
[1723738229458,0.05120304,146.69,146.67,3.45283378]
[1723738230162,0.05120304,146.69,146.67,0.04443378]
[1723738230163,3.4084,146.68,146.67,0.04443378]
[1723738235668,3.38045273,146.69,146.67,0.04443378]
[1723738235669,3.45940304,146.69,146.67,0.04443378]
[1723738235870,0.05120304,146.69,146.67,0.04443378]
[1723738236069,0.05120304,146.69,146.68,3.4084]
[1723738236272,0.05120304,146.69,146.67,29.49443378]
[1723738236771,0.05120304,146.69,146.67,32.90293378]
[1723738237474,3.45940304,146.69,146.67,0.04443378]
[1723738238167,0.05120304,146.69,146.67,3.45283378]
[1723738238771,3.45950304,146.69,146.67,0.04443378]
[1723738239878,3.4084,146.68,146.67,0.04443378]
[1723738251588,3.4093,146.64,146.6,4.78]
[1723738251801,0.05120304,146.69,146.63,11.78]
[1723738252104,3.409,146.66,146.63,15.1895]
[1723738252392,11.78,146.7,146.63,15.1895]
[1723738252599,11.78,146.7,146.63,11.78]
[1723738252796,3.409,146.66,146.65,0.05112944]
[1723738253193,3.4087,146.67,146.65,0.05112944]
[1723738253396,0.05064682,146.68,146.66,11.78]
[1723738253592,0.05064682,146.68,146.67,11.78]
[1723738254501,3.45904682,146.68,146.67,11.78]
[1723738254701,0.05064682,146.68,146.65,11.83112944]
[1723738255707,3.4088,146.67,146.65,11.83112944]
[1723738256499,3.45914682,146.68,146.65,15.24012944]
[1723738257602,3.4087,146.67,146.65,15.24012944]
[1723738259009,3.4087,146.67,146.65,11.83112944]
[1723738260002,3.4088,146.66,146.65,0.05112944]
[1723738266406,15.1888,146.66,146.65,0.05112944]
[1723738267207,11.78,146.66,146.56,4.78]
[1723738267408,11.78,146.64,146.57,5.93772639]
[1723738267603,3.4103,146.6,146.57,16.46492639]
[1723738267811,3.4103,146.6,146.57,19.87572639]
[1723738268712,3.46103074,146.6,146.57,19.92471124]
[1723738268909,3.46103074,146.6,146.59,11.78]
[1723738269107,0.05073074,146.6,146.59,11.78]
[1723738270109,0.05073074,146.6,146.58,11.78]
[1723738270310,3.46103074,146.6,146.58,11.78]
[1723738270513,0.05073074,146.6,146.58,11.78]
[1723738271711,3.4105,146.59,146.58,11.78]
[1723738272610,3.46103074,146.6,146.58,15.1907]
[1723738272806,3.46103074,146.6,146.59,11.78]
[1723738275215,3.4105,146.59,146.58,11.78]
[1723738275709,0.05073074,146.6,146.58,11.78]
[1723738277111,0.05073074,146.6,146.59,11.78]
[1723738277512,3.46093074,146.6,146.59,11.78]
[1723738277912,3.46093074,146.6,146.57,19.92063934]
[1723738278412,3.46093074,146.6,146.58,3.4106]
[1723738280515,3.4105,146.59,146.57,3.45978485]
[1723738280717,0.05073074,146.6,146.57,0.04898485]
[1723738281622,3.4107,146.58,146.57,0.04898485]
[1723738282213,3.4116,146.54,146.53,3.47614822]
[1723738282418,11.78,146.58,146.5,4.78]
[1723738282718,11.78,146.58,146.46,11.78]
[1723738282719,3.4131,146.48,146.46,11.78]
[1723738282920,11.78,146.5,146.44,11.78]
[1723738283119,11.78,146.5,146.43,53.34661858]
[1723738283120,11.78,146.49,146.43,11.78]
[1723738283321,11.78,146.49,146.42,11.78]
[1723738283517,11.82830188,146.47,146.45,0.04569133]
[1723738284019,11.78,146.46,146.39,6.0084]
[1723738284217,11.78,146.46,146.39,17.7884]
[1723738284720,3.4143,146.43,146.39,21.2034]
[1723738285024,3.4141,146.44,146.4,3.4148]
[1723738285318,8.17100675,146.5,146.42,11.78]
[1723738285516,3.4136,146.46,146.43,11.78]
[1723738285717,11.78,146.47,146.4,0.04728856]
[1723738285922,11.78,146.46,146.4,11.82728856]
[1723738286124,11.82965958,146.46,146.4,11.78]
[1723738286325,11.82965958,146.46,146.42,0.05197266]